bitfinex/quotes_BTCUSD_20250616
["timestamp","ask_amount","ask_price","bid_price","bid_amount"]
[1750091205315,0.00504727,107740.0,107730.0,1.05230722]
[1750091205527,0.00504727,107740.0,107730.0,0.27806461]
[1750091205761,0.00504727,107740.0,107730.0,1.05230722]
[1750091208202,0.00504727,107740.0,107730.0,0.27806461]
[1750091208433,0.00504727,107740.0,107730.0,1.05222722]
[1750091209784,0.00504727,107740.0,107730.0,0.47002461]
[1750091210020,0.00504727,107740.0,107730.0,1.05222722]
[1750091212296,0.00504727,107740.0,107730.0,0.86026722]
[1750091212514,0.00504727,107740.0,107730.0,1.05222722]
[1750091213957,0.00504727,107740.0,107730.0,0.86026722]
[1750091214163,0.00504727,107740.0,107730.0,0.27806461]
[1750091214367,0.00504727,107740.0,107730.0,1.03572722]
[1750091214778,0.00504727,107740.0,107730.0,1.05152722]
[1750091217010,0.00504727,107740.0,107730.0,0.85956722]
[1750091217223,0.00504727,107740.0,107730.0,1.05152722]
[1750091221030,0.02360935,107740.0,107730.0,0.26156461]
[1750091221274,0.06449078,107740.0,107730.0,0.40545565]
[1750091221725,0.06449078,107740.0,107730.0,0.40541565]
[1750091222218,0.25012285,107740.0,107730.0,0.21349565]
[1750091222455,0.25940436,107740.0,107730.0,0.40541565]
[1750091222930,0.35564612,107740.0,107730.0,0.20421379]
[1750091223161,0.36519821,107740.0,107730.0,0.39613379]
[1750091223414,0.35564612,107740.0,107730.0,0.39613379]
[1750091223644,0.36492772,107740.0,107730.0,0.41469776]
[1750091223868,0.36492772,107740.0,107730.0,0.41846776]
[1750091224050,0.35564681,107740.0,107730.0,0.41846776]
[1750091224520,0.35564681,107740.0,107730.0,0.39990379]
[1750091224737,0.34636564,107740.0,107730.0,0.39990379]
[1750091225157,0.43323343,107740.0,107730.0,0.39062167]
[1750091225367,0.43323343,107740.0,107730.0,0.39613396]
[1750091225792,0.43323343,107740.0,107730.0,0.41469828]
[1750091226003,0.43323343,107740.0,107730.0,0.42775031]
[1750091226212,0.43323343,107740.0,107730.0,0.42774988]
[1750091228082,0.33708421,107740.0,107730.0,0.42774988]
[1750091229160,0.33708421,107740.0,107730.0,0.24766379]
[1750091229308,0.33708421,107740.0,107730.0,0.40918591]
[1750091230732,0.00928212,107730.0,107720.0,0.4736719]
[1750091230987,0.21349556,107730.0,107720.0,0.4643896]
[1750091231192,0.24399599,107730.0,107720.0,0.66563301]
[1750091231403,0.9130657,107730.0,107720.0,0.002]
[1750091231611,1.00002526,107730.0,107720.0,0.19396]
[1750091231791,1.00002526,107730.0,107720.0,0.04172]
[1750091232114,1.00102526,107730.0,107720.0,0.19396]
[1750091232472,1.00102526,107730.0,107720.0,0.04172]
[1750091232698,1.00102526,107730.0,107720.0,0.19396]
[1750091232894,0.32267343,107730.0,107720.0,0.04172]
[1750091233105,0.35056443,107730.0,107720.0,0.19396]
[1750091233869,0.35056443,107730.0,107720.0,0.04172]
[1750091234069,0.35056443,107730.0,107720.0,0.19396]
[1750091237814,0.44044854,107730.0,107720.0,0.19396]
[1750091239972,0.35056443,107730.0,107720.0,0.19396]
[1750091240791,0.35056443,107730.0,107720.0,0.002]
[1750091240995,0.35056443,107730.0,107720.0,0.19392]
[1750091241202,0.35056443,107730.0,107720.0,0.38886978]
[1750091241396,0.35984655,107730.0,107720.0,0.40743582]
[1750091241808,0.35984655,107730.0,107720.0,0.39815293]
[1750091242336,0.35984655,107730.0,107720.0,0.40192293]
[1750091242552,0.35984655,107730.0,107720.0,0.39263978]
[1750091242753,0.35984655,107730.0,107720.0,0.41120599]
[1750091243313,0.34434655,107730.0,107720.0,0.40192293]
[1750091243621,0.36034655,107730.0,107720.0,0.19392]
[1750091244474,0.94254916,107730.0,107720.0,0.002]
[1750091244680,0.94487916,107730.0,107720.0,0.04168]
[1750091245104,0.94487916,107730.0,107720.0,0.002]
[1750091245309,1.28487916,107730.0,107720.0,0.04168]
[1750091245508,1.38102838,107730.0,107720.0,0.04168]
[1750091246058,1.38302838,107730.0,107720.0,0.04168]
[1750091246473,1.38002838,107730.0,107720.0,0.04168]
[1750091246843,1.38502838,107730.0,107720.0,0.04168]
[1750091247078,1.38302838,107730.0,107720.0,0.04168]
[1750091247410,1.38902838,107730.0,107720.0,0.04168]
[1750091248227,0.80449577,107730.0,107720.0,0.23662969]
[1750091248428,0.79521365,107730.0,107720.0,0.04168]
[1750091250820,0.79521365,107730.0,107720.0,0.22734654]
[1750091251043,0.66806435,107730.0,107720.0,0.24591276]
[1750091251278,0.67734647,107730.0,107720.0,0.24591276]
[1750091251941,0.68662833,107730.0,107720.0,0.24591276]
[1750091252156,0.68662833,107730.0,107720.0,0.26447846]
[1750091252368,0.68662833,107730.0,107720.0,0.26824846]
[1750091252582,0.68662833,107730.0,107720.0,0.21000276]
[1750091252796,0.68662833,107730.0,107720.0,0.40188276]
[1750091253860,0.78277755,107730.0,107720.0,0.41116565]
[1750091254125,0.34662833,107730.0,107720.0,0.42044846]
[1750091254584,0.16097903,107730.0,107720.0,0.42973118]
[1750091254876,0.15169656,107730.0,107720.0,1.04323379]
[1750091255104,0.04612821,107730.0,107720.0,1.04323379]
[1750091255324,0.04612821,107730.0,107720.0,0.46103118]
[1750091255533,0.04612821,107730.0,107720.0,0.44513118]
[1750091255743,0.23177751,107730.0,107720.0,0.43584846]
[1750091255957,0.24105997,107730.0,107720.0,0.42044846]
[1750091256805,0.23177811,107730.0,107720.0,0.42044846]
[1750091257456,0.23177811,107730.0,107720.0,0.24416846]
[1750091257888,0.23177811,107730.0,107720.0,0.22856846]
[1750091258372,0.23177811,107730.0,107720.0,0.21928565]
[1750091258578,0.23177811,107730.0,107720.0,0.42044846]
[1750091258820,0.03684635,107730.0,107720.0,0.42973118]
[1750091259024,0.03684635,107730.0,107720.0,0.44633118]
[1750091259208,0.22249565,107730.0,107720.0,0.43704846]
[1750091259342,0.22249565,107730.0,107720.0,0.42044846]
[1750091259743,0.23177802,107730.0,107720.0,0.42044846]
[1750091260174,0.03684635,107730.0,107720.0,0.42973118]
[1750091260404,0.03684635,107730.0,107720.0,0.44583118]
[1750091260762,0.23177802,107730.0,107720.0,0.44583118]
[1750091261777,0.24106048,107730.0,107720.0,0.44583118]
[1750091261983,0.23177854,107730.0,107720.0,0.43654846]
[1750091262541,0.23177854,107730.0,107720.0,0.41116565]
[1750091263467,0.23177854,107730.0,107720.0,0.21928565]
[1750091263681,0.23177854,107730.0,107720.0,0.41112565]
[1750091264100,0.3280203,107730.0,107720.0,0.19143654]
[1750091264254,1.01980772,107730.0,107720.0,0.4017631]
[1750091264461,1.04769672,107730.0,107720.0,0.41104625]
[1750091264668,0.46549411,107730.0,107720.0,0.41104625]
[1750091264845,0.36934489,107730.0,107720.0,0.41104625]
[1750091265907,0.36934489,107730.0,107720.0,0.4017631]
[1750091266119,0.36006252,107730.0,107720.0,0.41104616]
[1750091267113,0.36006252,107730.0,107720.0,0.42032914]
[1750091267801,0.34456252,107730.0,107720.0,0.42032914]
[1750091268951,0.34456252,107730.0,107720.0,0.41104616]
[1750091269401,0.34456252,107730.0,107720.0,0.41104616]
[1750091270381,0.34456252,107730.0,107720.0,0.19753]
[1750091270589,0.35088006,107730.0,107720.0,0.39247986]
[1750091271911,0.33528006,107730.0,107720.0,0.39247986]
[1750091272525,0.33528006,107730.0,107720.0,0.40176301]
[1750091276043,0.33528006,107730.0,107720.0,0.40172301]
[1750091276257,0.35088006,107730.0,107720.0,0.40172301]
[1750091277772,0.33528006,107730.0,107720.0,0.40172301]
[1750091279719,0.33528006,107730.0,107720.0,0.39243986]
[1750091280435,0.33528006,107730.0,107720.0,0.04537]
[1750091280669,1.02923189,107730.0,107720.0,0.002]
[1750091280892,1.09597183,107730.0,107720.0,0.002]
[1750091281124,0.37611804,107730.0,107720.0,0.0416]
[1750091281338,0.36944472,107730.0,107720.0,0.0416]
[1750091281783,0.36944472,107730.0,107720.0,0.002]
[1750091281988,0.36944472,107730.0,107720.0,0.19372]
[1750091282191,0.46559394,107730.0,107720.0,0.19372]
[1750091282411,1.08461072,107730.0,107720.0,0.002]
[1750091282629,1.08461072,107730.0,107720.0,0.19372]
[1750091282863,1.08461072,107730.0,107720.0,0.0416]
[1750091283281,1.42461072,107730.0,107720.0,0.0416]
[1750091283698,1.42694072,107730.0,107720.0,0.0416]
[1750091285286,5.89473811,107730.0,107720.0,0.002]
[1750091285515,6.47694072,107730.0,107720.0,0.0416]
[1750091285753,6.5047239,107730.0,107720.0,0.0416]
[1750091286471,6.47694072,107730.0,107720.0,0.0416]
[1750091292149,1.42461072,107730.0,107720.0,0.0416]
[1750091295079,1.42461072,107730.0,107720.0,0.002]
[1750091295297,1.42461072,107730.0,107720.0,0.04156]
[1750091296773,0.99448811,107730.0,107720.0,0.04156]
[1750091297021,1.57669072,107730.0,107720.0,0.04156]
[1750091306371,1.57669072,107730.0,107720.0,0.002]
[1750091310007,1.57669072,107730.0,107720.0,0.04156]
[1750091310215,1.56109072,107730.0,107720.0,0.04156]
[1750091310415,0.83809129,107730.0,107720.0,0.04156]
[1750091310622,0.85165804,107730.0,107720.0,0.07346]
[1750091311905,0.69961804,107730.0,107720.0,0.07346]
[1750091312358,0.69961804,107730.0,107720.0,0.07723]
[1750091312576,0.69961804,107730.0,107720.0,0.27217986]
[1750091313045,0.69961804,107730.0,107720.0,0.07723]
[1750091313271,0.73991033,107730.0,107720.0,0.06173]
[1750091318152,0.69961804,107730.0,107720.0,0.06173]
[1750091318582,0.67734472,107730.0,107720.0,0.06173]
[1750091319016,0.69962718,107730.0,107720.0,0.06173]
[1750091319442,0.69962718,107730.0,107720.0,0.07833]
[1750091319656,0.69962718,107730.0,107720.0,0.26399654]
[1750091319906,0.15541322,107730.0,107720.0,0.28256284]
[1750091320094,0.23177785,107730.0,107720.0,0.88333115]
[1750091320307,0.22249608,107730.0,107720.0,0.87404843]
[1750091320517,0.22249608,107730.0,107720.0,0.29184582]
[1750091320936,0.21321405,107730.0,107720.0,0.86452214]
[1750091321139,0.21321405,107730.0,107720.0,0.86452223]
[1750091321558,0.21321405,107730.0,107720.0,0.87380529]
[1750091321761,0.21321405,107730.0,107720.0,0.29184599]
[1750091321992,0.21321405,107730.0,107720.0,0.87380529]
[1750091322189,0.21321405,107730.0,107720.0,0.88308827]
[1750091322823,0.21321405,107730.0,107720.0,1.03508827]
[1750091323062,0.21321405,107730.0,107720.0,0.45312897]
[1750091324431,0.21321405,107730.0,107720.0,0.46241186]
[1750091324642,0.21321405,107730.0,107720.0,0.46241143]
[1750091324844,0.21321405,107730.0,107720.0,0.462411]
[1750091325370,0.009,107730.0,107720.0,1.04439953]
[1750091325767,0.01828169,107730.0,107720.0,0.85283953]
[1750091325985,0.01828169,107730.0,107720.0,1.04435953]
[1750091326196,0.009,107730.0,107720.0,1.04435953]
[1750091326386,0.01828169,107730.0,107720.0,1.04435953]
[1750091327749,0.01828177,107730.0,107720.0,1.04435953]
[1750091328206,0.01828169,107730.0,107720.0,1.04435953]
[1750091329693,0.01828169,107730.0,107720.0,0.85283953]
[1750091329901,0.04612804,107730.0,107720.0,0.85283953]
[1750091330087,0.03684575,107730.0,107720.0,1.04435953]
[1750091330511,0.02756363,107730.0,107720.0,1.04435953]
[1750091330719,0.02756355,107730.0,107720.0,1.04435953]
[1750091330931,0.03684549,107730.0,107720.0,1.04435953]
[1750091331493,0.01828169,107730.0,107720.0,1.04435953]
[1750091331903,0.02756355,107730.0,107720.0,1.04435953]
[1750091332544,0.009,107730.0,107720.0,1.04435953]
[1750091343834,0.009,107730.0,107720.0,0.85283953]
[1750091344050,0.009,107730.0,107720.0,1.04431953]
[1750091344757,0.01828186,107730.0,107720.0,0.2752053]
[1750091344995,1.02065378,107730.0,107720.0,0.38838969]
[1750091345229,0.92154434,107730.0,107720.0,0.002]
[1750091345454,0.91226205,107730.0,107720.0,0.04152]
[1750091345676,1.2691329,107730.0,107720.0,0.04152]
[1750091346818,0.6940964,107730.0,107720.0,0.04152]
[1750091347066,0.68481428,107730.0,107720.0,0.04152]
[1750091347630,0.54393159,107730.0,107720.0,0.83151129]
[1750091347847,0.54393159,107730.0,107720.0,0.24952276]
[1750091348037,0.55321371,107730.0,107720.0,0.24952284]
[1750091348255,0.55321371,107730.0,107720.0,0.25880573]
[1750091348457,0.36756398,107730.0,107720.0,0.25880573]
[1750091348898,0.349,107730.0,107720.0,0.26808854]
[1750091349120,0.349,107730.0,107720.0,0.27737126]
[1750091349342,0.009,107730.0,107720.0,0.85935979]
[1750091349545,0.01828169,107730.0,107720.0,0.87435979]
[1750091349760,0.01828169,107730.0,107720.0,0.29237126]
[1750091350285,0.01828169,107730.0,107720.0,0.25285126]
[1750091350510,0.01828169,107730.0,107720.0,0.44429126]
[1750091351104,0.009,107730.0,107720.0,0.44429126]
[1750091351303,0.01828177,107730.0,107720.0,0.44429126]
[1750091351553,0.01828169,107730.0,107720.0,0.44429126]
[1750091351773,0.08238963,107730.0,107720.0,0.27737126]
[1750091351987,0.14263597,107730.0,107720.0,0.19694978]
[1750091352282,0.14263597,107730.0,107720.0,0.39767276]
[1750091352526,0.13335368,107730.0,107720.0,0.41623846]
[1750091352711,0.1426358,107730.0,107720.0,0.41623846]
[1750091353122,0.1426358,107730.0,107720.0,0.42552118]
[1750091353663,0.1426358,107730.0,107720.0,0.41623846]
[1750091353852,0.1426358,107730.0,107720.0,0.39767259]
[1750091354068,0.08781006,107730.0,107720.0,0.39767284]
[1750091354274,0.07852786,107730.0,107720.0,0.41623854]
[1750091354495,0.07852786,107730.0,107720.0,0.42552126]
[1750091354727,0.06924574,107730.0,107720.0,0.42552126]
[1750091354908,0.07852786,107730.0,107720.0,0.42552126]
[1750091355222,0.08781015,107730.0,107720.0,0.40695582]
[1750091355434,0.08781015,107730.0,107720.0,0.41623871]
[1750091355662,0.08781015,107730.0,107720.0,0.42552152]
[1750091355890,0.08781015,107730.0,107720.0,0.41623871]
[1750091356106,0.08781015,107730.0,107720.0,0.26431871]
[1750091356438,0.08781015,107730.0,107720.0,0.27360152]
[1750091356841,0.07852786,107730.0,107720.0,0.27360152]
[1750091357053,0.07852786,107730.0,107720.0,0.273601]
[1750091357264,0.06924574,107730.0,107720.0,0.273601]
[1750091357410,0.05996363,107730.0,107720.0,0.277371]
[1750091357616,0.07852777,107730.0,107720.0,0.277371]
[1750091357817,0.07852777,107730.0,107720.0,0.26808828]
[1750091358065,0.06924557,107730.0,107720.0,0.277371]
[1750091358278,0.07852769,107730.0,107720.0,0.26808828]
[1750091358482,0.08780998,107730.0,107720.0,0.25880547]
[1750091358711,0.06924557,107730.0,107720.0,0.25880547]
[1750091358930,0.05068203,107730.0,107720.0,0.26808819]
[1750091359683,0.05996432,107730.0,107720.0,0.26808819]
[1750091359874,0.06924609,107730.0,107720.0,0.26808819]
[1750091360045,0.0599638,107730.0,107720.0,0.26808819]
[1750091360277,0.01828177,107730.0,107720.0,0.26808819]
[1750091360597,0.02756371,107730.0,107720.0,0.85007672]
[1750091361032,0.03684583,107730.0,107720.0,0.85007672]
[1750091361500,0.04612812,107730.0,107720.0,0.26808819]
[1750091362483,0.23177742,107730.0,107720.0,0.25880547]
[1750091362671,0.009,107730.0,107720.0,0.86537672]
[1750091362889,0.009,107730.0,107720.0,0.88087672]
[1750091365899,0.009,107730.0,107720.0,0.29888819]
[1750091366112,0.009,107730.0,107720.0,0.88087672]
[1750091366507,0.009,107730.0,107720.0,0.29888819]
[1750091366715,0.009,107730.0,107720.0,0.88087672]
[1750091370934,0.006,107730.0,107720.0,0.88087672]
[1750091371358,0.009,107730.0,107720.0,0.88087672]
[1750091371564,0.003,107730.0,107720.0,0.88087672]
[1750091372400,0.007,107730.0,107720.0,0.88087672]
[1750091372831,0.007,107730.0,107720.0,0.29888819]
[1750091373041,0.007,107730.0,107720.0,0.88087672]
[1750091379556,0.007,107730.0,107720.0,0.2741053]
[1750091379782,0.007,107730.0,107720.0,0.84075383]
[1750091380002,0.02556363,107730.0,107720.0,0.99259383]
[1750091380219,0.03484583,107730.0,107720.0,0.99259383]
[1750091380456,0.03484575,107730.0,107720.0,0.99259383]
[1750091380912,0.03484575,107730.0,107720.0,0.84075383]
[1750091381157,0.03484575,107730.0,107720.0,0.99259383]
[1750091382273,0.02556363,107730.0,107720.0,0.99259383]
[1750091382721,0.03484566,107730.0,107720.0,0.99259383]
[1750091384105,0.01628169,107730.0,107720.0,0.99259383]
[1750091384544,0.007,107730.0,107720.0,0.99259383]
[1750091386496,0.01628169,107730.0,107720.0,0.99259383]
[1750091387502,0.02556355,107730.0,107720.0,0.99259383]
[1750091387684,0.01628169,107730.0,107720.0,0.99259383]
[1750091388808,0.007,107730.0,107720.0,0.99259383]
[1750091390074,0.007,107730.0,107720.0,0.4106053]
[1750091390308,0.007,107730.0,107720.0,0.99259383]
[1750091390918,0.01628169,107730.0,107720.0,0.24944258]
[1750091391124,0.2606775,107730.0,107720.0,0.21000258]
[1750091391386,0.2606775,107730.0,107720.0,0.24944292]
[1750091391627,0.26995996,107730.0,107720.0,0.25872581]
[1750091391834,0.26067827,107730.0,107720.0,0.25872581]
[1750091392304,0.26067827,107730.0,107720.0,0.26800862]
[1750091392509,0.26067827,107730.0,107720.0,0.26423862]
[1750091392956,0.26067827,107730.0,107720.0,0.22479862]
[1750091393157,0.26067827,107730.0,107720.0,0.26423862]
[1750091394009,0.26067827,107730.0,107720.0,0.24567292]
[1750091394105,0.26067827,107730.0,107720.0,0.26423879]
[1750091394328,0.05646414,107730.0,107720.0,0.27352151]
[1750091394542,0.2513959,107730.0,107720.0,0.27352151]
[1750091395652,0.2513959,107730.0,107720.0,0.26423879]
[1750091395867,0.24211396,107730.0,107720.0,0.23638986]
[1750091396108,0.30402739,107730.0,107720.0,0.24567292]
[1750091396329,0.39098695,107730.0,107720.0,0.22710654]
[1750091396575,0.38170449,107730.0,107720.0,0.04144]
[1750091396801,0.31979106,107730.0,107720.0,0.04144]
[1750091397214,0.31979106,107730.0,107720.0,0.002]
[1750091397421,0.31979106,107730.0,107720.0,0.04144]
[1750091398672,0.32212106,107730.0,107720.0,0.04144]
[1750091400482,0.47392106,107730.0,107720.0,0.04144]
[1750091400707,0.41827028,107730.0,107720.0,0.22710654]
[1750091400957,0.59796128,107730.0,107720.0,0.22710654]
[1750091401786,0.59796128,107730.0,107720.0,0.23638986]
[1750091402060,0.1805969,107730.0,107720.0,0.25495573]
[1750091402340,0.53661095,107730.0,107720.0,0.24567292]
[1750091402601,0.51804681,107730.0,107720.0,0.04144]
[1750091403173,0.51804681,107730.0,107720.0,0.22710654]
[1750091403879,0.51804681,107730.0,107720.0,0.23638986]
[1750091404143,0.55077998,107730.0,107720.0,0.2456731]
[1750091404427,0.55077998,107730.0,107720.0,0.23638986]
[1750091404889,0.55077998,107730.0,107720.0,0.04144]
[1750091405330,0.39897998,107730.0,107720.0,0.04144]
[1750091405547,0.55310998,107730.0,107720.0,0.04144]
[1750091405997,1.13509851,107730.0,107720.0,0.04144]
[1750091406673,1.13276851,107730.0,107720.0,0.002]
[1750091406890,1.13509851,107730.0,107720.0,0.002]
[1750091407335,0.55310998,107730.0,107720.0,0.002]
[1750091407567,1.13509851,107730.0,107720.0,0.002]
[1750091412671,1.13276851,107730.0,107720.0,0.002]
[1750091412843,1.13509851,107730.0,107720.0,0.002]
[1750091413283,1.13276851,107730.0,107720.0,0.002]
[1750091413461,5.4735424,107730.0,107720.0,0.002]
[1750091413658,1.15500093,107730.0,107720.0,0.002]
[1750091414406,1.15733093,107730.0,107720.0,0.002]
[1750091416434,0.38847923,107730.0,107720.0,0.18766654]
[1750091416655,0.51804681,107730.0,107720.0,0.002]
[1750091417106,1.10003534,107730.0,107720.0,0.002]
[1750091419231,1.12227392,107730.0,107720.0,0.002]
[1750091419707,1.12460392,107730.0,107720.0,0.002]
[1750091419918,1.22075314,107730.0,107720.0,0.002]
[1750091426381,1.56075314,107730.0,107720.0,0.002]
[1750091428292,7.19274167,107730.0,107720.0,0.002]
[1750091429823,7.22056992,107730.0,107720.0,0.002]
[1750091430279,6.63858139,107730.0,107720.0,0.002]
[1750091431340,7.22056992,107730.0,107720.0,0.002]
[1750091431995,6.48678139,107730.0,107720.0,0.002]
[1750091432218,5.80631364,107730.0,107720.0,0.002]
[1750091432478,0.69758539,107730.0,107720.0,0.81350822]
[1750091432700,0.04417277,107730.0,107720.0,0.84135681]
[1750091432910,0.18660574,107730.0,107720.0,0.84135681]
[1750091433124,0.19588786,107730.0,107720.0,0.84135681]
[1750091433347,0.02556371,107730.0,107720.0,0.84135681]
[1750091433558,0.03484583,107730.0,107720.0,0.84135681]
[1750091434015,0.2297775,107730.0,107720.0,0.84135681]
[1750091434445,0.0441282,107730.0,107720.0,0.84135681]
[1750091434872,0.2297775,107730.0,107720.0,0.84135681]
[1750091435289,0.0441282,107730.0,107720.0,0.84135681]
[1750091435505,0.23905996,107730.0,107720.0,0.84135681]
[1750091435725,0.0441282,107730.0,107720.0,0.84135681]
[1750091436830,0.0441282,107730.0,107720.0,0.88075681]
[1750091437521,0.03484583,107730.0,107720.0,0.88075681]
[1750091437742,0.04412812,107730.0,107720.0,0.88075681]
[1750091437987,0.05341049,107730.0,107720.0,0.88075681]
[1750091438909,0.03484583,107730.0,107720.0,0.88075681]
[1750091439150,0.01628177,107730.0,107720.0,0.84135681]
[1750091439362,0.007,107730.0,107720.0,0.88075681]
[1750091439804,0.007,107730.0,107720.0,0.84135681]
[1750091440018,0.0255638,107730.0,107720.0,0.84135681]
[1750091440206,0.0255638,107730.0,107720.0,1.03247681]
[1750091440675,0.02556371,107730.0,107720.0,1.03247681]
[1750091440897,0.03484583,107730.0,107720.0,1.03247681]
[1750091441118,0.04412812,107730.0,107720.0,0.84135681]
[1750091441382,0.04412812,107730.0,107720.0,0.88075681]
[1750091441618,0.03484583,107730.0,107720.0,0.88075681]
[1750091441964,0.02556371,107730.0,107720.0,0.88075681]
[1750091442398,0.01628177,107730.0,107720.0,0.88075681]
[1750091443166,0.007,107730.0,107720.0,0.88075681]
[1750091448387,0.007,107730.0,107720.0,1.80274534]
[1750091448593,0.007,107730.0,107720.0,1.93352795]
[1750091449064,0.007,107730.0,107720.0,1.35153942]
[1750091449518,0.004,107730.0,107720.0,1.35153942]
[1750091449939,4.727e-05,107740.0,107730.0,0.24509565]
[1750091450176,4.727e-05,107740.0,107730.0,0.97880418]
[1750091451213,0.00104727,107740.0,107730.0,0.97880418]
[1750091451713,0.00204727,107740.0,107730.0,0.97880418]
[1750091452438,0.00204727,107740.0,107730.0,0.98257418]
[1750091452686,0.00204727,107740.0,107730.0,1.56456271]
[1750091453132,0.00204727,107740.0,107730.0,0.98257418]
[1750091453382,0.00204727,107740.0,107730.0,1.56456271]
[1750091453838,0.00204727,107740.0,107730.0,0.98257418]
[1750091454791,0.00204727,107740.0,107730.0,1.56456271]
[1750091455709,0.02060952,107740.0,107730.0,0.26966167]
[1750091455937,0.22480462,107740.0,107730.0,0.40830573]
[1750091456873,0.03917255,107740.0,107730.0,0.41754759]
[1750091457128,0.02989095,107740.0,107730.0,0.41754759]
[1750091458430,0.02989086,107740.0,107730.0,0.41754759]
[1750091458649,0.03917229,107740.0,107730.0,0.41754759]
[1750091459426,0.02060952,107740.0,107730.0,0.41754759]
[1750091459634,0.01132827,107740.0,107730.0,0.41754759]
[1750091459856,0.02060944,107740.0,107730.0,0.22654759]
[1750091460072,0.02989078,107740.0,107730.0,0.41750759]
[1750091460301,0.02060944,107740.0,107730.0,0.41750759]
[1750091460534,0.02989078,107740.0,107730.0,0.41750759]
[1750091460952,0.02989069,107740.0,107730.0,0.41750759]
[1750091461190,0.03917212,107740.0,107730.0,0.41750759]
[1750091461858,0.02989069,107740.0,107730.0,0.41750759]
[1750091462096,0.03917212,107740.0,107730.0,0.41750759]
[1750091463046,0.02989069,107740.0,107730.0,0.41750759]
[1750091463490,0.03917212,107740.0,107730.0,0.41750759]
[1750091464702,0.2340857,107740.0,107730.0,0.41750759]
[1750091464936,0.2340857,107740.0,107730.0,0.40822573]
[1750091465181,0.04845363,107740.0,107730.0,0.41750759]
[1750091465402,0.2340857,107740.0,107730.0,0.20798379]
[1750091465652,0.26589791,107740.0,107730.0,0.38589176]
[1750091465858,0.26589791,107740.0,107730.0,0.40445625]
[1750091466335,0.26589791,107740.0,107730.0,0.39517413]
[1750091466548,0.26589791,107740.0,107730.0,0.40445642]
[1750091466784,0.25661648,107740.0,107730.0,0.40445642]
[1750091467027,0.25661648,107740.0,107730.0,0.41373862]
[1750091467254,0.26589773,107740.0,107730.0,0.42302005]
[1750091467471,0.2457237,107740.0,107730.0,0.42679005]
[1750091467688,0.2457237,107740.0,107730.0,0.41750819]
[1750091468366,0.23644245,107740.0,107730.0,0.40822616]
[1750091468582,0.22716094,107740.0,107730.0,0.40822616]
[1750091469038,0.3141211,107740.0,107730.0,0.38966167]
[1750091469261,0.41027032,107740.0,107730.0,0.04309]
[1750091469505,0.41027032,107740.0,107730.0,0.03932]
[1750091470161,0.3141211,107740.0,107730.0,0.03932]
[1750091473341,0.3141211,107740.0,107730.0,0.2249693]
[1750091473595,0.3141211,107740.0,107730.0,0.23425176]
[1750091474271,0.3141211,107740.0,107730.0,0.04860246]
[1750091474899,0.3141211,107740.0,107730.0,0.23425176]
[1750091476160,0.3141211,107740.0,107730.0,0.03932]
[1750091476380,0.3141211,107740.0,107730.0,0.2249693]
[1750091477306,0.3141211,107740.0,107730.0,0.23425159]
[1750091477527,0.3141211,107740.0,107730.0,0.23802159]
[1750091479749,0.02060952,107740.0,107730.0,0.84785612]
[1750091479976,0.03917177,107740.0,107730.0,0.87965612]
[1750091480433,0.02989034,107740.0,107730.0,0.87965612]
[1750091480657,0.03917168,107740.0,107730.0,0.87965612]
[1750091481998,0.02989034,107740.0,107730.0,0.87965612]
[1750091483098,0.03917168,107740.0,107730.0,0.87965612]
[1750091483759,0.02989034,107740.0,107730.0,0.87965612]
[1750091484002,0.03917159,107740.0,107730.0,0.87965612]
[1750091484601,0.04845302,107740.0,107730.0,0.29766759]
[1750091484807,0.03917159,107740.0,107730.0,0.29766759]
[1750091485233,0.02989034,107740.0,107730.0,0.29766759]
[1750091485711,0.02989034,107740.0,107730.0,0.87965612]
[1750091486203,0.00204727,107740.0,107730.0,0.87965612]
[1750091498915,0.00204727,107740.0,107730.0,1.46164465]
[1750091499171,0.00204727,107740.0,107730.0,1.55788641]
[1750091500037,4.727e-05,107740.0,107730.0,1.55788641]
[1750091501663,4.727e-05,107740.0,107730.0,2.11242726]
[1750091502948,4.727e-05,107740.0,107730.0,2.11642726]
[1750091507536,4.727e-05,107740.0,107730.0,2.26794726]
[1750091514565,4.727e-05,107740.0,107730.0,2.92403701]
[1750091516958,4.727e-05,107740.0,107730.0,2.92399701]
[1750091517322,4.727e-05,107740.0,107730.0,2.73319701]
[1750091517523,4.727e-05,107740.0,107730.0,2.92383701]
[1750091518597,0.112,107770.0,107760.0,0.55343621]
[1750091518803,0.11204729,107770.0,107760.0,2.13573327]
[1750091519010,0.11204729,107770.0,107760.0,2.12023327]
[1750091519855,0.11404729,107770.0,107760.0,2.12023327]
[1750091520132,0.11404729,107770.0,107760.0,2.10413327]
[1750091520926,0.11804729,107770.0,107760.0,2.20037503]
[1750091521180,0.11804729,107770.0,107760.0,2.21667503]
[1750091521371,0.11804729,107770.0,107760.0,2.23217503]
[1750091522293,0.11804729,107770.0,107760.0,2.21667503]
[1750091522521,0.11804729,107770.0,107760.0,2.21336646]
[1750091522726,0.11804729,107770.0,107760.0,2.02272646]
[1750091522932,0.11804729,107770.0,107760.0,2.21336646]
[1750091523111,0.11804729,107770.0,107760.0,1.07693382]
[1750091523338,0.11804729,107770.0,107760.0,1.46828235]
[1750091523559,0.11804729,107770.0,107760.0,1.65892235]
[1750091523760,0.11804729,107770.0,107760.0,1.46828235]
[1750091523898,0.11804729,107770.0,107760.0,1.65892235]
[1750091525651,0.11804729,107770.0,107760.0,2.24091088]
[1750091525858,0.11804729,107770.0,107760.0,2.25721088]
[1750091526863,0.11804729,107770.0,107760.0,1.65892235]
[1750091528323,0.11804729,107770.0,107760.0,2.24091088]
[1750091531229,0.11804729,107770.0,107760.0,2.27281088]
[1750091531453,0.11804729,107770.0,107760.0,2.28735173]
[1750091531736,0.11804729,107770.0,107760.0,2.27195173]
[1750091533326,0.11204729,107770.0,107760.0,2.27195173]
[1750091535871,0.11204729,107770.0,107760.0,2.08131173]
[1750091536093,0.11204729,107770.0,107760.0,2.27191173]
[1750091539586,0.11204729,107770.0,107760.0,2.28801173]
[1750091544388,0.11204729,107770.0,107760.0,2.09741173]
[1750091544607,0.11204729,107770.0,107760.0,2.28797173]
[1750091553000,0.11204729,107770.0,107760.0,2.17023193]
[1750091554456,0.11204729,107770.0,107760.0,2.17015193]
[1750091554877,0.11204729,107770.0,107760.0,2.69327056]
[1750091555107,0.09696329,107770.0,107760.0,2.69327056]
[1750091555332,0.09696329,107770.0,107760.0,2.17015193]
[1750091555539,0.09696329,107770.0,107760.0,2.15405193]
[1750091555744,0.09696329,107770.0,107760.0,2.2280521]
[1750091556201,0.09696329,107770.0,107760.0,2.15405193]
[1750091556744,0.09696329,107770.0,107760.0,1.96357193]
[1750091556954,0.09696329,107770.0,107760.0,2.15405193]
[1750091557408,0.09696329,107770.0,107760.0,0.91733467]
[1750091557640,0.09696329,107770.0,107760.0,1.96357193]